bitfinex/quotes_BTCUSD_20211001
["timestamp","ask_amount","ask_price","bid_price","bid_amount"]
[1633107156524,8.60984014,47409.0,47403.0,0.210936]
[1633107156723,0.19280333,47408.0,47406.0,0.07510125]
[1633107156926,0.19280333,47408.0,47404.0,0.21094]
[1633107157126,0.19280333,47408.0,47405.0,0.217464]
[1633107157324,0.0025342,47411.0,47404.0,0.21094]
[1633107157528,0.00129603,47411.0,47405.0,0.28835838]
[1633107157824,0.29984091,47414.0,47405.0,0.28835838]
[1633107158029,0.3428473,47406.0,47405.0,0.28835838]
[1633107158223,8.71941556,47415.0,47405.0,0.2232]
[1633107158424,8.71941556,47415.0,47405.0,0.26310003]
[1633107158629,8.71941556,47415.0,47405.0,9.644e-05]
[1633107158630,0.08726355,47414.0,47405.0,9.644e-05]
[1633107158825,0.217464,47413.0,47405.0,9.644e-05]
[1633107159026,0.00129491,47411.0,47405.0,9.644e-05]
[1633107159427,0.217464,47410.0,47405.0,9.644e-05]
[1633107159626,0.20700769,47410.0,47405.0,9.644e-05]
[1633107159825,0.00129491,47411.0,47405.0,9.644e-05]
[1633107160629,8.71941556,47415.0,47405.0,9.644e-05]
[1633107160826,8.71941556,47415.0,47405.0,0.18740881]
[1633107161133,8.60984014,47415.0,47406.0,0.3145298]
[1633107161328,8.60984014,47415.0,47407.0,0.0005301]
[1633107161528,8.60984014,47415.0,47411.0,0.316368]
[1633107161725,8.60984014,47415.0,47412.0,0.30515643]
[1633107161925,0.36354318,47421.0,47413.0,0.0186]
[1633107162326,0.36354318,47421.0,47416.0,0.210919]
[1633107162527,0.36354318,47421.0,47416.0,0.229519]
[1633107162728,0.21213597,47420.0,47417.0,0.25891913]
[1633107162926,0.21213597,47420.0,47416.0,0.545872]
[1633107163126,0.21213597,47420.0,47416.0,0.229519]
[1633107163328,8.60484014,47422.0,47416.0,0.229519]
[1633107163526,8.60484014,47422.0,47417.0,0.25835133]
[1633107163725,8.60484014,47422.0,47416.0,0.229519]
[1633107163925,8.60484014,47422.0,47417.0,0.25995548]
[1633107164332,8.60484014,47422.0,47418.0,0.316345]
[1633107164533,0.23753978,47427.0,47418.0,0.334945]
[1633107164728,8.84237992,47427.0,47419.0,0.217464]
[1633107164928,8.84237992,47427.0,47420.0,0.31849647]
[1633107165127,8.96409552,47427.0,47422.0,0.07345368]
[1633107165329,8.84237992,47427.0,47426.0,0.2906]
[1633107165531,8.84237992,47427.0,47426.0,0.55814928]
[1633107165729,8.84237992,47427.0,47426.0,0.26754928]
[1633107165935,8.84115728,47427.0,47426.0,0.25936527]
[1633107166130,0.23631714,47427.0,47425.0,0.316296]
[1633107166528,0.23144968,47427.0,47425.0,0.316296]
[1633107167332,0.23144968,47427.0,47423.0,0.28305504]
[1633107167528,0.23144968,47427.0,47422.0,0.229461]
[1633107168129,0.23144968,47427.0,47423.0,0.25939178]
[1633107168931,0.24074968,47427.0,47423.0,0.25939178]
[1633107169936,0.24074968,47427.0,47422.0,0.229461]
[1633107173942,0.2420158,47427.0,47422.0,0.229461]
[1633107174344,0.2420158,47427.0,47422.0,0.210861]
[1633107174744,0.2420158,47427.0,47422.0,0.527182]
[1633107174942,0.2420158,47427.0,47422.0,0.210861]
[1633107175144,0.24074968,47427.0,47422.0,0.210861]
[1633107176144,0.0093,47427.0,47422.0,0.210861]
[1633107178348,0.0093,47427.0,47422.0,0.527182]
[1633107179014,0.0093,47427.0,47422.0,0.210861]
[1633107180013,0.0093,47427.0,47422.0,0.320861]
[1633107181419,0.0093,47427.0,47423.0,0.65487042]
[1633107181623,0.0093,47427.0,47423.0,0.47645042]
[1633107181820,0.0093,47427.0,47425.0,0.2232]
[1633107182017,0.0093,47427.0,47426.0,0.31342578]
[1633107182220,0.0093,47427.0,47426.0,0.53088978]
[1633107182421,0.0093,47427.0,47426.0,0.96144056]
[1633107182818,0.0093,47427.0,47426.0,1.18464056]
[1633107183422,0.0093,47427.0,47426.0,1.18584249]
[1633107184419,0.22895914,47439.0,47426.0,1.18705128]
[1633107184629,0.22895914,47439.0,47432.0,0.73026923]
[1633107184831,0.22895914,47439.0,47433.0,0.28898503]
[1633107185428,0.22895914,47439.0,47436.0,0.08437957]
[1633107185630,0.22895914,47439.0,47437.0,0.334781]
[1633107185830,0.22895914,47439.0,47437.0,0.59618257]
[1633107186028,0.22895914,47439.0,47437.0,0.59559344]
[1633107186232,0.22895914,47439.0,47438.0,0.27049491]
[1633107186430,0.22895914,47439.0,47438.0,0.28909491]
[1633107186630,0.22911573,47439.0,47438.0,0.0186]
[1633107188233,0.22911573,47439.0,47438.0,0.27827473]
[1633107189033,0.22911573,47439.0,47438.0,0.0186]
[1633107189235,0.3283043,47439.0,47438.0,0.0186]
[1633107189440,0.3283043,47439.0,47430.0,0.0186]
[1633107189636,0.3283043,47439.0,47438.0,0.10877759]
[1633107189837,0.22895914,47439.0,47438.0,0.10877759]
[1633107190038,0.23395914,47439.0,47438.0,0.10877759]
[1633107190235,0.23395914,47439.0,47438.0,0.42494659]
[1633107190434,0.005,47439.0,47438.0,0.42494659]
[1633107196508,0.20266867,47439.0,47438.0,0.42494659]
[1633107197249,0.005,47439.0,47438.0,0.10877759]
[1633107197440,0.005,47439.0,47438.0,0.42499059]
[1633107201043,0.0053,47439.0,47438.0,0.42499059]
[1633107201645,0.1753,47439.0,47438.0,0.42499059]
[1633107203246,0.17503108,47439.0,47438.0,0.42499059]
[1633107207245,0.17583108,47439.0,47438.0,0.42499059]
[1633107210253,0.17583108,47439.0,47438.0,0.32499059]
[1633107210851,0.26691041,47439.0,47438.0,0.32499059]
[1633107211849,0.26691041,47439.0,47438.0,0.00877759]
[1633107212050,0.26815215,47439.0,47438.0,0.00877759]
[1633107213052,0.26815215,47439.0,47438.0,0.00789984]
[1633107214521,0.17707282,47439.0,47438.0,0.10789984]
[1633107215467,2.5,47437.0,47433.0,0.15831774]
[1633107215661,0.00125014,47434.0,47420.0,0.26511296]
[1633107215857,0.00122092,47427.0,47423.0,0.5]
[1633107216056,0.00122092,47427.0,47424.0,0.217464]
[1633107216459,0.26886556,47427.0,47426.0,0.316288]
[1633107217156,0.19696798,47431.0,47426.0,0.316288]
[1633107217354,8.60484014,47434.0,47426.0,0.316288]
[1633107217355,8.60609119,47434.0,47426.0,0.316288]
[1633107217754,8.60609119,47434.0,47430.0,0.0247]
[1633107218157,6.023e-05,47431.0,47430.0,0.0247]
[1633107218355,0.22859373,47431.0,47430.0,0.0247]
[1633107219556,0.22859373,47431.0,47430.0,0.1347]
[1633107220956,0.22982317,47431.0,47430.0,0.1347]
[1633107221353,0.22982317,47431.0,47430.0,0.11]
[1633107223760,2.727464,47430.0,47422.0,0.16694121]
[1633107223960,0.0240314,47422.0,47415.0,0.1664]
[1633107224160,2.50121289,47416.0,47415.0,0.1664]
[1633107224359,2.50121289,47416.0,47405.0,9.644e-05]
[1633107224557,0.00120023,47407.0,47406.0,0.5]
[1633107224758,0.00120023,47407.0,47406.0,0.09752284]
[1633107224759,0.27953802,47407.0,47406.0,0.09752284]
[1633107224958,0.27953802,47407.0,47406.0,0.09773981]
[1633107225558,0.57053437,47407.0,47406.0,0.00021697]
[1633107225960,0.22953802,47407.0,47406.0,0.00021697]
[1633107226558,0.22953802,47407.0,47406.0,0.31663497]
[1633107226959,0.22953802,47407.0,47406.0,0.00021697]
[1633107227562,0.51909517,47407.0,47406.0,0.00021697]
[1633107228367,0.22953802,47407.0,47406.0,0.00021697]
[1633107229364,0.22953802,47407.0,47406.0,0.00027945]
[1633107229563,0.22953802,47407.0,47406.0,0.00034193]
[1633107230764,0.2308159,47407.0,47406.0,0.00034193]
[1633107232370,0.22953802,47407.0,47406.0,0.00034193]
[1633107233029,0.23078672,47407.0,47406.0,0.00034193]
[1633107235828,0.44825072,47407.0,47406.0,0.00034193]
[1633107236028,0.23078672,47407.0,47406.0,0.00034193]
[1633107236428,0.22363149,47407.0,47406.0,0.00034193]
[1633107239032,0.22494849,47407.0,47406.0,0.00034193]
[1633107239830,0.0025657,47407.0,47406.0,0.00034193]
[1633107240035,0.001317,47407.0,47406.0,0.31794345]
[1633107240833,0.31401869,47407.0,47406.0,0.31664597]
[1633107241034,0.001317,47407.0,47406.0,0.31664597]
[1633107242037,0.27013078,47407.0,47406.0,0.33674597]
[1633107242239,0.27013078,47407.0,47406.0,0.00021697]
[1633107243134,0.27013078,47407.0,47406.0,0.07779343]
[1633107243335,0.27013078,47407.0,47406.0,0.08045648]
[1633107243939,0.001317,47407.0,47406.0,0.08045648]
[1633107244736,0.001317,47407.0,47406.0,0.39688948]
[1633107244936,0.60596074,47410.0,47406.0,0.39688948]
[1633107245136,0.3575245,47410.0,47406.0,0.39688948]
[1633107245336,8.60484014,47413.0,47409.0,0.0001808]
[1633107245738,8.60484014,47413.0,47412.0,0.00014463]
[1633107246338,8.80040596,47413.0,47412.0,0.00014463]
[1633107246737,8.60484014,47413.0,47412.0,0.00014463]
[1633107247139,8.60484014,47413.0,47412.0,0.29749132]
[1633107247339,0.0240314,47422.0,47412.0,0.29749132]
[1633107247548,8.60484014,47420.0,47412.0,0.29749132]
[1633107247740,0.18085422,47419.0,47418.0,0.00128694]
[1633107247941,0.18085422,47419.0,47418.0,0.01988694]
[1633107248141,0.18085422,47419.0,47418.0,0.0186]
[1633107250142,0.30253176,47419.0,47418.0,0.0186]
[1633107250541,0.18085422,47419.0,47418.0,0.0186]
[1633107251347,0.18085422,47419.0,47418.0,0.1286]
[1633107251942,0.0240314,47422.0,47418.0,0.1286]
[1633107252342,0.0240314,47422.0,47419.0,0.421736]
[1633107253562,0.2287826,47422.0,47419.0,0.421736]
[1633107253742,0.0240314,47422.0,47419.0,0.421736]
[1633107254146,0.0013571,47421.0,47419.0,0.421736]
[1633107254547,0.0013571,47421.0,47420.0,0.00126147]
[1633107254945,0.0013571,47421.0,47419.0,0.421736]
[1633107255145,0.00133001,47420.0,47418.0,0.41121147]
[1633107255545,0.02291584,47422.0,47419.0,6.026e-05]
[1633107255747,0.02291584,47422.0,47419.0,0.31639526]
[1633107256147,0.00127932,47421.0,47419.0,0.31639526]
[1633107257150,0.02291584,47422.0,47419.0,0.31639526]
[1633107259751,0.02291584,47422.0,47420.0,0.0186]
[1633107259950,8.60484014,47429.0,47422.0,0.02291584]
[1633107260152,8.60484014,47429.0,47428.0,0.00126878]
[1633107260351,6.023e-05,47431.0,47428.0,0.01986878]
[1633107260552,0.22803104,47431.0,47429.0,0.08895315]
[1633107260752,0.22803104,47431.0,47430.0,0.64929306]
[1633107261353,0.22803104,47431.0,47430.0,0.70603101]
[1633107261552,0.22803104,47431.0,47430.0,0.96416158]
[1633107261751,0.22803104,47431.0,47430.0,0.70603101]
[1633107262352,6.023e-05,47431.0,47430.0,0.53603101]
[1633107262752,6.023e-05,47431.0,47430.0,0.55463101]
[1633107262954,6.023e-05,47431.0,47430.0,0.80837227]
[1633107263153,6.023e-05,47431.0,47430.0,0.55463101]
[1633107263753,6.023e-05,47431.0,47430.0,0.334834]
[1633107264554,6.023e-05,47431.0,47430.0,0.0186]
[1633107265155,0.20871125,47431.0,47423.0,0.0186]
[1633107265355,0.00124947,47424.0,47422.0,0.02291584]
[1633107266057,0.46715276,47423.0,47422.0,0.02291584]
[1633107266256,9.25974701,47423.0,47422.0,0.02291584]
[1633107266855,9.47721101,47423.0,47422.0,0.02291584]
[1633107267056,9.47847625,47423.0,47422.0,0.02291584]
[1633107267258,9.26101225,47423.0,47422.0,0.02291584]
[1633107267855,9.26101225,47423.0,47422.0,0.02159221]
[1633107268256,9.26105751,47423.0,47422.0,0.02159221]
[1633107268657,8.60615064,47423.0,47422.0,0.02159221]
[1633107268857,8.60615064,47423.0,47422.0,0.33790421]
[1633107269257,8.60616355,47423.0,47422.0,0.33790421]
[1633107269460,8.60484014,47423.0,47422.0,0.45347236]
[1633107269662,0.2007926,47431.0,47426.0,0.09677061]
[1633107269863,8.60484014,47428.0,47427.0,0.316279]
[1633107270860,8.89936503,47428.0,47423.0,0.421705]
[1633107271524,8.89936503,47428.0,47422.0,0.02159221]
[1633107272063,8.90065513,47428.0,47427.0,0.03276283]
[1633107272265,8.97784902,47428.0,47427.0,0.03276283]
[1633107272471,8.97784902,47428.0,47427.0,6.283e-05]
[1633107272472,9.19657994,47428.0,47427.0,6.283e-05]
[1633107272863,2.52993717,47423.0,47422.0,0.02159221]
[1633107273063,0.02993717,47423.0,47422.0,0.02159221]
[1633107274066,0.23534655,47423.0,47422.0,0.02159221]
[1633107274263,0.02993717,47423.0,47422.0,0.02159221]
[1633107277264,0.02993717,47423.0,47422.0,0.04019221]
[1633107281267,0.02993717,47423.0,47422.0,0.12019221]
[1633107285673,0.02993717,47423.0,47422.0,0.11744121]
[1633107286676,0.02993717,47423.0,47422.0,0.09884121]
[1633107295086,0.02993717,47423.0,47422.0,0.41518221]
[1633107296686,0.02993717,47423.0,47422.0,0.09884121]
[1633107297487,0.03120496,47423.0,47422.0,0.09884121]
[1633107298553,0.02993717,47423.0,47422.0,0.09884121]
[1633107302891,0.27161309,47423.0,47422.0,0.09884121]
[1633107303895,0.27161309,47423.0,47422.0,0.09384121]
[1633107306095,0.02993717,47423.0,47422.0,0.09384121]
[1633107307096,0.27500641,47423.0,47422.0,0.09384121]
[1633107308099,0.27626037,47423.0,47422.0,0.09384121]
[1633107308503,0.27746849,47423.0,47422.0,0.09384121]
[1633107310301,0.27756702,47423.0,47422.0,0.09384121]
[1633107310699,0.27756702,47423.0,47422.0,0.09314121]
[1633107312304,0.27750352,47423.0,47422.0,0.09314121]
[1633107314302,0.27749656,47423.0,47422.0,0.09314121]
[1633107316565,0.27749581,47423.0,47422.0,0.09314121]
[1633107318704,0.27748054,47423.0,47422.0,0.09314121]
[1633107320708,0.27757447,47423.0,47422.0,0.09314121]
[1633107321108,0.27257447,47423.0,47422.0,0.09314121]
[1633107321716,2.73060521,47422.0,47419.0,2.6e-07]
[1633107321915,0.217464,47420.0,47419.0,2.6e-07]
[1633107322109,0.52562962,47420.0,47419.0,2.6e-07]
[1633107322711,0.236064,47420.0,47419.0,2.6e-07]
[1633107324112,0.93022906,47420.0,47419.0,2.6e-07]
[1633107324312,0.93021373,47420.0,47419.0,2.6e-07]
[1633107324516,0.00129354,47407.0,47406.0,0.002132]
[1633107324715,0.12126354,47407.0,47406.0,0.002132]
[1633107324912,8.72610368,47407.0,47406.0,0.0022887]
[1633107325114,9.23186302,47407.0,47406.0,0.0022887]
[1633107325312,9.43636976,47407.0,47406.0,0.0022887]
[1633107325715,8.93061042,47407.0,47406.0,0.0022887]
[1633107325917,8.92931688,47407.0,47406.0,0.0022887]
[1633107326412,8.92908086,47407.0,47406.0,0.0022887]
[1633107327414,9.23031999,47407.0,47406.0,0.0022887]
[1633107328212,9.44778399,47407.0,47406.0,0.0022887]
[1633107328414,9.4490715,47407.0,47406.0,0.0022887]
[1633107329014,9.4490715,47407.0,47406.0,0.0002887]
[1633107329213,9.4490715,47407.0,47406.0,0.0001567]
[1633107335125,9.4490715,47407.0,47406.0,0.00093934]
[1633107345528,9.7656125,47407.0,47406.0,0.00093934]
[1633107345927,9.86872547,47407.0,47406.0,0.00093934]
[1633107346330,0.31205693,47394.0,47390.0,0.04987934]
[1633107346598,0.31205693,47394.0,47391.0,0.217464]
[1633107346729,0.31205693,47394.0,47393.0,0.00015674]
[1633107346934,0.31205693,47394.0,47393.0,0.0913704]
[1633107347132,0.31205693,47394.0,47393.0,0.3088344]
[1633107347331,0.31205693,47394.0,47393.0,0.21762074]
[1633107347734,0.30960994,47394.0,47393.0,0.21762074]
[1633107348333,0.29987279,47401.0,47393.0,0.21762074]
[1633107348533,8.80934688,47407.0,47400.0,0.0012824]
[1633107348735,8.80934688,47407.0,47400.0,0.00135473]
[1633107348937,8.80934688,47407.0,47403.0,0.2232]
[1633107349137,8.60484014,47407.0,47406.0,0.08089842]
[1633107349334,8.60484014,47407.0,47406.0,0.40439355]
[1633107349602,8.60484014,47407.0,47406.0,0.10002852]
[1633107349736,8.60484014,47407.0,47406.0,0.41592342]
[1633107349935,0.0012699,47415.0,47406.0,0.41592342]
[1633107350135,0.19566803,47407.0,47406.0,0.41592342]
[1633107350738,0.19566803,47407.0,47406.0,0.66807972]
[1633107350936,0.0012699,47415.0,47406.0,0.66807972]
[1633107351536,8.60111004,47416.0,47406.0,0.66807972]
[1633107351738,8.60111004,47416.0,47407.0,0.210933]
[1633107351939,8.60111004,47416.0,47415.0,0.00129372]
[1633107352338,8.60120645,47416.0,47415.0,0.00129372]
[1633107353139,8.60120645,47416.0,47415.0,0.31766172]
[1633107354340,8.59120645,47416.0,47415.0,0.31766172]
[1633107355605,8.59120645,47416.0,47415.0,0.00129372]
[1633107356547,8.80867045,47416.0,47415.0,0.00129372]
[1633107359950,0.217464,47415.0,47414.0,0.29274155]
[1633107360347,0.21754836,47415.0,47414.0,0.29274155]
[1633107360752,0.21754836,47415.0,47411.0,0.210929]
[1633107361754,0.00121376,47412.0,47400.0,7.233e-05]
[1633107361955,0.00121376,47412.0,47400.0,0.50007233]
[1633107361956,0.00124741,47401.0,47400.0,0.50007233]
[1633107362150,0.12974741,47401.0,47400.0,0.50007233]
[1633107362352,0.12974741,47401.0,47400.0,0.71753633]
[1633107362551,0.33251391,47401.0,47400.0,0.50007233]
[1633107362750,0.54997791,47401.0,47400.0,7.233e-05]
[1633107363749,0.33251391,47401.0,47400.0,7.233e-05]
[1633107364612,0.54997791,47401.0,47400.0,7.233e-05]
[1633107366959,1.9721517,47401.0,47400.0,7.233e-05]
[1633107367157,1.9721517,47401.0,47400.0,2.33e-06]
[1633107367158,1.9907517,47401.0,47400.0,2.33e-06]
[1633107367355,0.8407517,47401.0,47400.0,2.33e-06]
[1633107367649,0.36581141,47401.0,47400.0,2.33e-06]
[1633107368559,0.55889609,47401.0,47400.0,2.33e-06]
[1633107369156,0.36581141,47401.0,47400.0,2.33e-06]
[1633107370154,0.60471949,47401.0,47400.0,2.33e-06]
[1633107371666,8.90893191,47402.0,47401.0,2.94879027]
[1633107371667,6.59088015,47402.0,47401.0,2.94879027]
[1633107371860,0.00133785,47412.0,47402.0,0.88587364]
[1633107372062,0.01314121,47422.0,47416.0,0.00142221]
[1633107372258,0.17765823,47434.0,47423.0,0.003125]
[1633107372459,0.17765823,47434.0,47433.0,0.00124442]
[1633107372659,2.17536663,47449.0,47435.0,0.37930932]
[1633107372858,0.0004,47453.0,47438.0,0.68417307]
[1633107373064,0.0004,47453.0,47449.0,0.46541918]
[1633107373259,0.0004,47453.0,47449.0,0.67383622]
[1633107373458,0.0004,47453.0,47449.0,0.67436632]
[1633107373663,0.0004,47453.0,47449.0,0.87383622]
[1633107373858,0.20115791,47450.0,47449.0,1.12731877]
[1633107374057,0.20115791,47450.0,47449.0,0.87383622]
[1633107374257,0.20115791,47450.0,47449.0,0.87436632]
[1633107374459,0.20115791,47450.0,47449.0,0.87383622]
[1633107374661,0.0004,47450.0,47449.0,0.87383622]
[1633107374859,0.0004,47450.0,47449.0,0.8730683]
[1633107375058,0.0004,47450.0,47449.0,0.8725382]
[1633107375859,0.22064331,47450.0,47449.0,0.8725382]
[1633107376265,0.22064331,47450.0,47449.0,0.8712793]
[1633107377060,0.22064331,47450.0,47449.0,0.86503745]
[1633107377260,0.21064331,47450.0,47449.0,0.86503745]
[1633107378461,0.21064331,47450.0,47449.0,0.71048745]
[1633107379060,1.76064331,47450.0,47449.0,0.70923791]
[1633107379260,0.21064331,47450.0,47449.0,0.70923791]
[1633107381063,0.21064331,47450.0,47449.0,0.70796525]
[1633107382862,0.0004,47452.0,47449.0,0.70796525]
[1633107383068,0.0004,47452.0,47450.0,0.47251165]
[1633107383264,0.0004,47452.0,47450.0,0.49040091]
[1633107383462,0.00090347,47451.0,47450.0,0.23658236]
[1633107384069,0.00090347,47451.0,47450.0,0.23605226]
[1633107384464,0.00090347,47451.0,47450.0,0.23477416]
[1633107385264,0.00090347,47451.0,47450.0,0.23353082]
[1633107387431,0.00090347,47451.0,47450.0,0.23221711]
[1633107388032,0.0004,47452.0,47450.0,0.23221711]
[1633107388239,0.0004,47452.0,47451.0,0.90610125]
[1633107388431,0.0004,47452.0,47451.0,1.13583687]
[1633107388630,0.0004,47452.0,47451.0,1.15419092]
[1633107389430,0.0004,47452.0,47451.0,1.15288534]
[1633107389630,0.0004,47452.0,47451.0,0.93099092]
[1633107389830,0.0004,47452.0,47451.0,1.15419092]
[1633107390030,0.0004,47452.0,47451.0,1.18419092]
[1633107390829,0.0004,47452.0,47451.0,1.68419092]
[1633107391640,0.0004,47452.0,47451.0,1.68290018]
[1633107392234,0.0004,47452.0,47451.0,1.65290018]
[1633107392833,0.0004,47454.0,47453.0,0.00127296]
[1633107393034,0.0004,47454.0,47453.0,1.50272032]
[1633107393234,0.0004,47454.0,47453.0,2.52954484]
[1633107393434,0.0004,47454.0,47453.0,2.55954484]
[1633107393633,0.0004,47454.0,47453.0,3.71337426]
[1633107395051,0.0004,47454.0,47453.0,3.28259846]
[1633107395653,0.0004,47454.0,47453.0,3.28135013]
[1633107396850,0.0004,47454.0,47453.0,3.35125013]
[1633107397750,0.0004,47454.0,47453.0,3.35001178]
[1633107397953,0.0004,47454.0,47453.0,3.38251844]
[1633107398551,0.0004,47454.0,47453.0,3.08251844]
[1633107398751,0.0004,47454.0,47453.0,2.68019982]
[1633107398952,0.0004,47454.0,47453.0,2.98019982]
[1633107399351,0.0004,47454.0,47453.0,3.16981786]
[1633107399556,0.0004,47454.0,47453.0,4.31781786]
[1633107399753,0.0004,47454.0,47453.0,4.31652213]
[1633107400354,0.0004,47454.0,47453.0,4.33487618]
[1633107400555,0.0004,47454.0,47453.0,4.43487618]
[1633107401954,0.0004,47454.0,47453.0,4.43356152]
[1633107402754,0.0004,47454.0,47453.0,5.26628775]
[1633107403754,0.0004,47454.0,47453.0,4.11828775]
[1633107403957,0.0004,47454.0,47453.0,3.686184]
[1633107404556,0.0004,47454.0,47453.0,3.586184]
[1633107404759,0.0004,47454.0,47453.0,4.086184]
[1633107405960,0.0004,47454.0,47453.0,4.08493526]
[1633107406356,0.0004,47454.0,47453.0,4.21493526]
[1633107406958,0.0004,47454.0,47453.0,4.18493526]
[1633107407362,0.0004,47454.0,47453.0,4.08493526]
[1633107408162,0.0004,47454.0,47453.0,4.08362598]
[1633107408760,0.0004,47454.0,47453.0,3.78362598]
[1633107408961,0.0004,47454.0,47453.0,3.69146069]
[1633107410162,0.0004,47454.0,47453.0,3.28820018]
[1633107410364,0.0004,47454.0,47453.0,3.58820018]
[1633107410562,0.0004,47454.0,47453.0,3.28820018]
[1633107411163,0.0004,47454.0,47453.0,3.58820018]
[1633107411362,0.0004,47454.0,47453.0,3.38030018]
[1633107412162,0.0004,47454.0,47453.0,4.79830018]
[1633107412362,0.0004,47454.0,47453.0,3.77895044]
[1633107414366,0.0004,47454.0,47453.0,3.7776005]
[1633107415625,0.0004,47454.0,47453.0,3.6776005]
[1633107415969,0.0004,47454.0,47453.0,3.7076005]
[1633107416168,0.0004,47454.0,47453.0,3.6776005]
[1633107416367,0.0004,47454.0,47453.0,4.79423586]
[1633107416569,0.0004,47454.0,47453.0,3.67623586]
[1633107416968,0.0004,47454.0,47453.0,3.45303586]
[1633107417169,0.0004,47454.0,47453.0,3.67623586]
[1633107417367,0.0004,47454.0,47453.0,4.82423586]
[1633107418635,0.0004,47454.0,47453.0,4.79293276]
[1633107419573,0.0004,47464.0,47453.0,5.12293276]
[1633107419773,0.0004,47464.0,47462.0,0.46545632]
[1633107419973,0.0004,47464.0,47462.0,1.85160131]
[1633107420174,0.0008,47472.0,47463.0,0.217347]
[1633107420478,0.0008,47472.0,47469.0,0.46541341]
[1633107420673,0.0008,47472.0,47469.0,0.91107163]
[1633107420872,0.00048426,47470.0,47469.0,1.34024827]
[1633107421077,0.00048426,47470.0,47469.0,1.18902009]
[1633107421275,0.49998991,47469.0,47465.0,1.15508775]
[1633107421673,6.019e-05,47468.0,47466.0,0.217281]
[1633107421876,0.09488338,47463.0,47461.0,0.316022]
[1633107422074,0.07397393,47466.0,47462.0,0.217281]
[1633107422277,6.019e-05,47468.0,47462.0,0.267481]
[1633107422675,6.019e-05,47468.0,47466.0,0.0921]
[1633107422873,6.019e-05,47468.0,47467.0,0.316015]
[1633107423075,6.019e-05,47468.0,47467.0,0.67321513]
[1633107423271,6.019e-05,47468.0,47467.0,0.69181513]
[1633107423874,6.019e-05,47468.0,47467.0,0.90910413]
[1633107424670,6.019e-05,47468.0,47467.0,0.90782369]
[1633107425275,6.019e-05,47468.0,47467.0,0.90912103]
[1633107426875,6.019e-05,47468.0,47467.0,0.90778697]
[1633107427076,6.019e-05,47468.0,47467.0,0.90648963]
[1633107428874,6.019e-05,47468.0,47467.0,0.90521607]
[1633107431073,6.019e-05,47468.0,47467.0,0.90397979]
[1633107431273,6.019e-05,47468.0,47467.0,0.59727966]
[1633107431678,0.0012689,47468.0,47467.0,0.59727966]
[1633107432076,0.0012689,47468.0,47467.0,0.6877976]
[1633107432276,0.0012689,47468.0,47467.0,0.59727966]
[1633107433080,0.0012689,47468.0,47467.0,0.59597709]
[1633107435081,0.0012689,47468.0,47467.0,0.59471408]
[1633107435880,6.019e-05,47468.0,47467.0,0.59471408]
[1633107437342,6.019e-05,47468.0,47467.0,0.59340523]
[1633107439340,6.019e-05,47468.0,47467.0,0.59207831]
[1633107441347,6.019e-05,47468.0,47467.0,0.59083848]
[1633107441544,6.019e-05,47468.0,47467.0,0.59212384]
[1633107441941,6.019e-05,47468.0,47467.0,0.59265394]
[1633107442342,6.019e-05,47468.0,47467.0,0.59212384]
[1633107443541,6.019e-05,47468.0,47467.0,0.59084796]
[1633107444144,6.019e-05,47468.0,47467.0,0.59137806]
[1633107444947,6.019e-05,47468.0,47467.0,0.59084796]
[1633107445545,6.019e-05,47468.0,47467.0,0.58953716]
[1633107447549,6.019e-05,47468.0,47467.0,0.58820355]
[1633107447749,6.019e-05,47468.0,47467.0,0.82985743]
[1633107447949,6.019e-05,47468.0,47467.0,0.58820355]
[1633107449755,6.019e-05,47468.0,47467.0,0.5868772]
[1633107451762,6.019e-05,47468.0,47467.0,0.58556292]
[1633107453157,6.019e-05,47468.0,47467.0,0.58427756]
[1633107453759,6.019e-05,47468.0,47467.0,0.58298975]
[1633107454562,6.019e-05,47468.0,47467.0,0.58351985]
[1633107455764,6.019e-05,47468.0,47467.0,0.58298975]
[1633107455963,6.019e-05,47468.0,47467.0,0.58174274]
[1633107456367,6.019e-05,47468.0,47467.0,0.58227284]
[1633107456973,6.019e-05,47468.0,47467.0,0.58174274]
[1633107457365,6.019e-05,47468.0,47467.0,0.58227284]
[1633107457969,6.019e-05,47468.0,47467.0,0.58093422]
[1633107459570,6.019e-05,47468.0,47467.0,0.58040412]
[1633107459969,6.019e-05,47468.0,47467.0,0.5791213]
[1633107461971,6.019e-05,47468.0,47467.0,0.52120918]
[1633107462175,6.019e-05,47468.0,47467.0,0.51987228]
[1633107462573,6.019e-05,47468.0,47467.0,0.52040238]
[1633107464174,6.019e-05,47468.0,47467.0,0.51905699]
[1633107464571,6.019e-05,47468.0,47467.0,0.51852689]
[1633107465773,6.019e-05,47468.0,47467.0,0.51905699]
[1633107466174,6.019e-05,47468.0,47467.0,0.51771034]
[1633107467583,2.78182134,47467.0,47464.0,0.4998]
[1633107467779,0.0012197,47465.0,47457.0,1.15508775]
[1633107467979,0.10361519,47458.0,47457.0,1.15508775]
[1633107468179,0.10361519,47458.0,47455.0,0.2994]
[1633107468381,0.10361519,47458.0,47451.0,0.1]
[1633107468382,0.09277836,47456.0,47451.0,0.1]
[1633107468583,0.00125374,47452.0,47445.0,0.0875]
[1633107468782,0.00125374,47452.0,47439.0,1.0726]
[1633107469085,0.00125374,47452.0,47440.0,0.217288]
[1633107469280,0.00125374,47452.0,47438.0,0.010442]
[1633107469479,0.10741679,47450.0,47439.0,0.0005301]
[1633107469681,0.32203559,47444.0,47442.0,0.316188]
[1633107470280,0.00125141,47443.0,47440.0,0.210775]
[1633107470480,0.00125141,47443.0,47441.0,0.42677557]
[1633107470683,0.00125141,47443.0,47442.0,0.00022885]
[1633107470880,0.00125141,47443.0,47442.0,0.21751685]
[1633107471080,0.32203559,47444.0,47442.0,0.21751685]
[1633107471279,0.00122325,47449.0,47442.0,0.21751685]
[1633107471485,0.00120929,47457.0,47443.0,0.00149829]
[1633107471684,0.00123105,47460.0,47448.0,0.00015656]
[1633107471886,0.25,47461.0,47455.0,7.225e-05]
[1633107472084,2.9372,47464.0,47456.0,0.0186]
[1633107472282,1.099,47464.0,47456.0,0.0186]
[1633107472486,1.099,47464.0,47458.0,0.08049158]
[1633107472682,0.00128881,47468.0,47459.0,0.13110014]
[1633107472882,0.00128881,47468.0,47460.0,0.24420926]
[1633107472883,6.019e-05,47468.0,47460.0,0.24420926]
[1633107473082,6.019e-05,47468.0,47461.0,0.0191301]
[1633107473483,6.019e-05,47468.0,47463.0,0.316046]
[1633107473684,6.019e-05,47468.0,47464.0,0.0186]
[1633107473884,6.019e-05,47468.0,47464.0,0.0086]
[1633107474081,0.10864843,47468.0,47464.0,0.0086]
[1633107474482,0.10864843,47468.0,47464.0,0.00731717]
[1633107474682,0.10864843,47468.0,47466.0,0.316022]
[1633107474882,0.10864843,47468.0,47467.0,0.0186]
[1633107475682,6.019e-05,47468.0,47467.0,0.0186]
[1633107476686,6.019e-05,47468.0,47467.0,0.01729168]
[1633107477589,6.019e-05,47468.0,47467.0,0.3191229]
[1633107477788,6.019e-05,47468.0,47467.0,0.77877341]